bitfinex/quotes_SOLUSD_20240814
["timestamp","ask_amount","ask_price","bid_price","bid_amount"]
[1723642861591,1.32340461,148.88,148.74,85.0]
[1723642862170,1.32340461,148.89,148.76,45.43]
[1723642862502,1.32340461,148.89,148.77,65.0]
[1723642862869,6.99278488,148.91,148.77,65.0]
[1723642863074,8.31618949,148.91,148.77,65.0]
[1723642863369,6.716,148.9,148.77,65.0]
[1723642863569,1.32340461,148.89,148.77,65.0]
[1723642863992,6.7178,148.86,148.77,20.0]
[1723642864189,45.43,148.87,148.75,6.0]
[1723642864495,45.43,148.84,148.75,6.0]
[1723642864722,1.32340461,148.83,148.75,6.0]
[1723642864998,1.32340461,148.83,148.69,15.1985]
[1723642864999,1.32340461,148.82,148.7,51.9672]
[1723642865522,45.43,148.87,148.7,51.9672]
[1723642865666,6.7167,148.89,148.71,40.0]
[1723642865885,45.43,148.87,148.71,45.43]
[1723642866084,6.7178,148.86,148.71,45.43]
[1723642866295,6.7178,148.86,148.72,20.0]
[1723642866467,45.43,148.87,148.72,20.0]
[1723642866468,1.32340461,148.85,148.72,20.0]
[1723642867268,1.32340461,148.85,148.73,45.0]
[1723642867488,46.75340461,148.85,148.74,20.0]
[1723642867669,6.7195,148.82,148.7,9.26677713]
[1723642867990,1.32340461,148.81,148.7,6.5372]
[1723642868165,8.04340461,148.81,148.7,6.5372]
[1723642868362,46.75340461,148.82,148.7,6.5372]
[1723642868783,6.7219,148.77,148.7,6.5372]
[1723642869098,1.32340461,148.76,148.7,6.5372]
[1723642869599,1.32340461,148.76,148.69,15.1985]
[1723642869767,45.43,148.79,148.69,15.1985]
[1723642870196,46.75340461,148.79,148.69,15.1985]
[1723642870398,45.43,148.82,148.69,15.1985]
[1723642870607,6.7193,148.83,148.69,15.1985]
[1723642870768,46.75340461,148.85,148.7,45.0]
[1723642870970,8.04230461,148.84,148.7,90.43]
[1723642871197,6.1624,148.87,148.71,20.0]
[1723642871397,14.20310461,148.87,148.72,45.0]
[1723642871569,1.32340461,148.9,148.73,71.7503]
[1723642871772,6.99278488,148.91,148.73,71.7503]
[1723642871773,6.99278488,148.91,148.77,15.5326]
[1723642871971,45.43,148.87,148.78,45.0]
[1723642872241,1.32340461,148.86,148.77,15.5326]
[1723642872384,45.43,148.87,148.77,15.5326]
[1723642872573,1.32340461,148.86,148.77,15.5326]
[1723642872775,1.32340461,148.85,148.77,15.5326]
[1723642873103,45.43,148.84,148.74,45.0]
[1723642873399,1.32340461,148.86,148.73,6.3203]
[1723642873588,1.32340461,148.85,148.74,45.0]
[1723642873903,1.32340461,148.91,148.76,45.43]
[1723642874113,6.716,148.9,148.77,45.0]
[1723642874402,6.7162,148.9,148.77,45.0]
[1723642874609,1.32340461,148.89,148.78,20.0]
[1723642874777,46.75340461,148.89,148.75,20.0]
[1723642874976,6.7168,148.88,148.75,20.0]
[1723642875190,1.32340461,148.87,148.74,20.0]
[1723642875400,6.97818525,148.92,148.79,45.43]
[1723642875572,51.6581,148.96,148.82,45.43]
[1723642875898,6.7137,148.95,148.82,45.43]
[1723642876151,58.63448961,148.96,148.81,6.0626]
[1723642876410,6.7193,148.83,148.76,6.0438]
[1723642876608,45.43,148.84,148.76,6.0438]
[1723642876791,45.43,148.89,148.76,6.0438]
[1723642877102,1.32340461,148.88,148.76,6.0438]
[1723642877308,1.32340461,148.87,148.76,6.0438]
[1723642877716,1.32340461,148.88,148.76,6.0438]
[1723642877882,45.43,148.89,148.76,6.0438]
[1723642878200,1.32340461,148.88,148.76,6.0438]
[1723642878408,45.43,148.86,148.75,15.7898]
[1723642879078,1.32340461,148.85,148.75,15.7898]
[1723642879728,45.43,148.84,148.75,15.7898]
[1723642879915,45.43,148.81,148.72,6.0438]
[1723642880080,46.75340461,148.81,148.72,6.0438]
[1723642880710,46.75340461,148.81,148.7,16.5151]
[1723642880915,6.7209,148.79,148.7,16.5151]
[1723642881116,45.43,148.81,148.7,16.5151]
[1723642881406,6.7213,148.78,148.7,16.5151]
[1723642881582,6.7236,148.73,148.65,16.5151]
[1723642881786,1.32340461,148.72,148.65,16.5151]
[1723642882007,6.7245,148.71,148.65,16.5151]
[1723642882183,1.32340461,148.7,148.65,16.5151]
[1723642882549,1.32340461,148.74,148.65,16.5151]
[1723642882693,1.32340461,148.71,148.65,16.5151]
[1723642882877,45.43,148.75,148.65,16.5151]
[1723642883078,1.32340461,148.74,148.65,16.5151]
[1723642883293,45.43,148.72,148.64,6.1067]
[1723642883513,1.32340461,148.71,148.6,22.4295]
[1723642883711,1.32340461,148.7,148.6,22.4295]
[1723642883888,8.04840461,148.7,148.6,22.4295]
[1723642884290,52.1555,148.69,148.55,67.0257]
[1723642884477,52.1555,148.69,148.55,21.5957]
[1723642884681,45.43,148.69,148.63,6.728]
[1723642884984,16.94830461,148.74,148.56,45.43]
[1723642885199,6.477,148.76,148.62,45.43]
[1723642885587,6.477,148.76,148.57,21.3452505]
[1723642885588,6.477,148.76,148.56,7.67644421]
[1723642885790,6.477,148.76,148.59,45.43]
[1723642885791,45.43,148.75,148.59,45.43]
[1723642886055,45.43,148.75,148.55,21.5957]
[1723642886056,45.43,148.72,148.65,6.727]
[1723642886322,45.43,148.72,148.56,45.43]
[1723642886690,6.98749525,148.74,148.59,45.43]
[1723642886899,6.98749525,148.74,148.7,6.7247]
[1723642887302,6.98749525,148.74,148.62,45.43]
[1723642887496,6.477,148.76,148.62,45.43]
[1723642887705,6.9734616,148.78,148.65,45.43]
[1723642887904,6.9734616,148.78,148.66,45.0]
[1723642888282,13.6949616,148.78,148.66,45.0]
[1723642888488,13.6949616,148.78,148.65,45.0]
[1723642888489,6.9734616,148.78,148.65,45.0]
[1723642888689,13.6948616,148.78,148.66,20.0]
[1723642888893,8.29686621,148.78,148.67,45.0]
[1723642889211,6.9734616,148.78,148.65,45.0]
[1723642889415,13.6948616,148.78,148.65,45.0]
[1723642889596,6.9734616,148.78,148.65,45.0]
[1723642889810,13.6947616,148.78,148.65,45.0]
[1723642890011,6.7218,148.77,148.65,45.0]
[1723642890255,6.723,148.75,148.65,45.0]
[1723642890539,1.32340461,148.74,148.64,16.5287]
[1723642890740,45.43,148.76,148.64,16.5287]
[1723642891061,46.75340461,148.76,148.62,6.3331]
[1723642891235,45.43,148.73,148.62,6.3331]
[1723642891422,6.9734616,148.78,148.58,6.0171]
[1723642891423,58.4442,148.7,148.58,6.0171]
[1723642891613,1.32340461,148.69,148.58,6.0171]
[1723642891920,8.04880461,148.69,148.58,6.0171]
[1723642892228,51.7193,148.7,148.58,6.0171]
[1723642892432,45.43,148.67,148.54,23.192827]
[1723642892683,45.43,148.64,148.58,6.7302]
[1723642892815,45.43,148.64,148.54,16.806427]
[1723642892816,1.32340461,148.63,148.6,6.7294]
[1723642893011,1.32340461,148.63,148.54,0.838427]
[1723642893445,1.32340461,148.63,148.59,6.7298]
[1723642893824,1.32340461,148.63,148.54,0.838427]
[1723642894031,1.32340461,148.63,148.58,6.7303]
[1723642894215,1.32340461,148.63,148.54,0.838427]
[1723642894556,45.43,148.61,148.54,0.838427]
[1723642894736,1.32340461,148.6,148.54,0.838427]
[1723642894919,45.43,148.61,148.39,0.838427]
[1723642894920,6.7342,148.5,148.39,0.838427]
[1723642895121,45.43,148.53,148.39,0.838427]
[1723642895420,1.32340461,148.52,148.39,0.838427]
[1723642895633,1.32340461,148.51,148.39,0.838427]
[1723642895966,16.71870461,148.57,148.4,45.43]
[1723642896245,15.3953,148.57,148.4,20.0]
[1723642896541,6.4341,148.59,148.43,45.43]
[1723642897143,6.4341,148.59,148.43,65.43]
[1723642897380,15.9621,148.64,148.52,45.43]
[1723642897565,6.3992,148.66,148.53,20.0]
[1723642897849,6.3992,148.66,148.54,45.0]
[1723642898030,14.68532665,148.66,148.54,45.0]
[1723642898230,13.36192204,148.66,148.53,45.0]
[1723642898436,6.3992,148.66,148.55,45.43]
[1723642898627,6.3992,148.66,148.56,45.0]
[1723642898831,45.43,148.62,148.46,45.43]
[1723642899152,45.43,148.62,148.47,20.0]
[1723642899356,1.32340461,148.61,148.47,20.0]
[1723642899537,45.43,148.62,148.47,20.0]
[1723642899741,45.43,148.65,148.49,45.43]
[1723642899949,6.3992,148.66,148.52,45.43]
[1723642900260,6.3992,148.66,148.5,20.0]
[1723642900261,6.3992,148.66,148.53,20.0]
[1723642900426,6.3992,148.66,148.52,45.43]
[1723642900762,6.3992,148.66,148.55,45.43]
[1723642901001,6.536,148.82,148.61,45.43]
[1723642901258,45.43,148.77,148.62,65.0]
[1723642901448,45.43,148.74,148.62,45.0]
[1723642901956,45.43,148.77,148.62,45.0]
[1723642902140,45.43,148.74,148.62,45.0]
[1723642902340,45.43,148.68,148.54,45.43]
[1723642903037,6.7268,148.66,148.54,45.43]
[1723642903238,6.7266,148.67,148.51,65.43]
[1723642903553,6.9617863,148.68,148.54,45.43]
[1723642904832,1.32340461,148.69,148.57,45.43]
[1723642905037,15.00880783,148.69,148.58,45.0]
[1723642905240,53.71340783,148.69,148.54,45.43]
[1723642905436,6.7276,148.65,148.55,20.0]
[1723642905761,1.32340461,148.64,148.51,45.43]
[1723642905966,6.7287,148.62,148.43,20.0]
[1723642906258,45.43,148.66,148.5,45.43]
[1723642906460,45.43,148.66,148.47,45.43]
[1723642906461,6.7286,148.62,148.47,45.43]
[1723642906671,46.75340461,148.63,148.47,45.43]
[1723642906834,6.7277,148.64,148.5,45.43]
[1723642907239,59.11540322,148.69,148.53,45.43]
[1723642907545,15.2624,148.7,148.56,45.43]
[1723642907743,45.43,148.75,148.59,45.43]
[1723642907945,33.82530461,148.77,148.6,45.0]
[1723642907946,6.7254,148.69,148.6,45.0]
[1723642908194,46.75340461,148.72,148.6,45.0]
[1723642908195,6.7249,148.71,148.6,45.0]
[1723642908344,23.2078,148.74,148.6,45.0]
[1723642908345,6.3998,148.74,148.6,90.43]
[1723642908538,6.95393822,148.72,148.6,90.43]
[1723642908769,1.32340461,148.71,148.6,90.43]
[1723642908937,6.7249,148.7,148.6,45.0]
[1723642909137,6.95393822,148.72,148.6,45.0]
[1723642909338,6.95393822,148.72,148.6,90.43]
[1723642909748,6.95393822,148.72,148.61,20.0]
[1723642909956,15.6967,148.77,148.63,65.43]
[1723642910276,6.95400966,148.76,148.66,45.43]
[1723642910442,12.9984,148.81,148.67,20.0]
[1723642910759,6.7222,148.76,148.63,45.43]
[1723642910960,45.43,148.79,148.64,20.0]
[1723642911166,1.32340461,148.78,148.64,20.0]
[1723642911385,45.43,148.76,148.57,20.0]
[1723642911538,45.43,148.76,148.53,26.5138]
[1723642911539,6.724,148.72,148.59,45.43]
[1723642911881,1.32340461,148.75,148.56,45.43]
[1723642911882,1.32340461,148.71,148.56,45.43]
[1723642912054,6.725,148.7,148.56,45.43]
[1723642912250,45.43,148.73,148.56,45.43]
[1723642912439,8.04650461,148.74,148.59,45.43]
[1723642912765,45.43,148.75,148.56,45.43]
[1723642912766,1.32340461,148.73,148.56,45.43]
[1723642912939,1.32340461,148.76,148.59,45.43]
[1723642913142,6.7237,148.73,148.59,45.43]
[1723642913363,45.43,148.76,148.59,45.43]
[1723642913549,45.43,148.76,148.57,20.0]
[1723642913550,45.43,148.76,148.62,45.43]
[1723642913751,45.43,148.76,148.63,45.0]
[1723642913951,1.32340461,148.75,148.63,45.0]
[1723642914173,45.43,148.73,148.56,45.43]
[1723642914373,8.04740461,148.72,148.57,65.0]
[1723642914553,6.7246,148.71,148.57,65.0]
[1723642914863,1.32340461,148.72,148.57,65.0]
[1723642914864,6.724,148.72,148.57,65.0]
[1723642915068,8.04740461,148.72,148.57,65.0]
[1723642915243,6.724,148.72,148.57,65.0]
[1723642915441,1.32340461,148.71,148.59,45.43]
[1723642915641,6.7241,148.72,148.6,65.0]
[1723642915851,45.43,148.75,148.6,65.0]
[1723642916090,1.32340461,148.77,148.62,45.43]
[1723642916244,6.7219,148.77,148.63,65.0]
[1723642916571,8.27946275,148.8,148.63,65.0]
[1723642916572,1.32340461,148.76,148.63,65.0]
[1723642916864,6.7212,148.79,148.65,45.43]
[1723642917065,6.95605814,148.8,148.68,45.43]
[1723642917250,1.32340461,148.79,148.69,45.0]
[1723642917447,6.7214,148.78,148.69,45.0]
[1723642917660,13.67655814,148.8,148.69,45.0]
[1723642917971,8.27946275,148.8,148.69,45.0]
[1723642918154,13.67645814,148.8,148.69,45.0]
[1723642918668,6.95605814,148.8,148.71,45.43]
[1723642918971,15.8698,148.86,148.72,45.0]
[1723642918972,6.95672976,148.85,148.72,45.0]
[1723642919151,6.95672976,148.85,148.73,20.0]
[1723642919341,15.8698,148.86,148.74,45.0]
[1723642919786,1.32340461,148.85,148.74,45.0]
[1723642919943,68.0175,148.86,148.74,45.0]
[1723642920362,19.72750361,148.88,148.74,45.0]
[1723642920640,45.43,148.83,148.67,45.43]
[1723642920865,6.7209,148.79,148.67,45.43]
[1723642921146,1.32340461,148.82,148.67,45.43]
[1723642921358,13.01030361,148.88,148.7,45.43]
[1723642921359,45.43,148.86,148.7,45.43]
[1723642921560,6.7195,148.82,148.7,45.43]
[1723642921781,1.32340461,148.81,148.67,45.43]
[1723642921951,6.7195,148.82,148.67,45.43]
[1723642922282,45.43,148.83,148.67,45.43]
[1723642922283,1.32340461,148.81,148.68,20.0]
[1723642922780,45.43,148.8,148.65,6.3028]
[1723642923065,6.7209,148.79,148.65,6.3028]
[1723642923272,6.722,148.77,148.65,6.3028]
[1723642923442,45.43,148.8,148.65,6.3028]
[1723642923649,62.2297,148.82,148.65,6.3028]
[1723642923650,6.7209,148.79,148.65,6.3028]
[1723642923878,6.7225,148.76,148.65,6.3028]
[1723642924053,6.7218,148.77,148.66,20.0]
[1723642924275,1.32340461,148.81,148.66,20.0]
[1723642924468,1.32340461,148.79,148.66,65.43]
[1723642924670,52.1495,148.82,148.66,65.43]
[1723642924859,6.7208,148.8,148.66,65.43]
[1723642925172,46.75340461,148.82,148.66,65.43]
[1723642925348,13.01030361,148.88,148.72,45.43]
[1723642925543,58.44030361,148.88,148.73,45.0]
[1723642925857,6.7181,148.86,148.73,45.0]
[1723642926046,6.7183,148.85,148.73,45.0]
[1723642926262,6.7195,148.83,148.73,45.0]
[1723642926480,45.43,148.85,148.73,45.0]
[1723642926652,13.01030361,148.88,148.74,45.43]
[1723642926967,13.01030361,148.88,148.75,45.0]
[1723642927193,1.32340461,148.87,148.75,45.0]
[1723642927388,6.7177,148.86,148.75,45.0]
[1723642927613,13.01030361,148.88,148.75,45.0]
[1723642927960,6.7173,148.87,148.75,45.0]
[1723642928186,6.7181,148.86,148.75,45.0]
[1723642928385,1.32340461,148.87,148.75,45.0]
[1723642928560,29.80230361,148.88,148.75,45.0]
[1723642928757,13.01030361,148.88,148.75,45.0]
[1723642929186,6.0524,148.88,148.75,45.0]
[1723642929486,6.7177,148.86,148.75,45.0]
[1723642929690,6.7168,148.88,148.75,45.0]
[1723642929984,1.32340461,148.87,148.71,45.43]
[1723642930167,45.43,148.85,148.72,20.0]
[1723642930358,1.32340461,148.84,148.72,20.0]
[1723642930563,1.32340461,148.84,148.71,2.67543931]
[1723642930781,45.43,148.82,148.68,45.43]
[1723642930977,1.32340461,148.81,148.68,45.43]
[1723642931186,6.7213,148.78,148.67,2.61177643]
[1723642931497,1.32340461,148.81,148.61,65.43]
[1723642931498,45.43,148.76,148.61,45.43]
[1723642931667,6.724,148.73,148.6,6.2365]
[1723642931871,45.43,148.73,148.6,6.2365]
[1723642932992,45.43,148.79,148.64,45.43]
[1723642933196,6.7213,148.79,148.64,45.43]
[1723642933510,15.896,148.81,148.64,45.43]
[1723642933792,22.616,148.81,148.67,45.43]
[1723642934017,22.6159,148.81,148.68,20.0]
[1723642934173,1.32340461,148.8,148.69,45.0]
[1723642934362,6.7219,148.77,148.69,45.0]
[1723642934568,1.32340461,148.76,148.69,45.0]
[1723642934778,45.43,148.82,148.68,45.0]
[1723642934779,1.32340461,148.75,148.68,45.0]
[1723642934996,6.7226,148.76,148.6,26.2365]
[1723642935185,6.7218,148.77,148.62,20.0]
[1723642935376,1.32340461,148.76,148.62,20.0]
[1723642935775,6.7213,148.78,148.62,40.0]
[1723642936097,45.43,148.82,148.65,45.43]
[1723642936296,45.43,148.82,148.66,20.0]
[1723642936493,6.7221,148.77,148.66,20.0]
[1723642936699,6.7222,148.76,148.65,45.43]
[1723642936867,46.75340461,148.76,148.61,48.03189096]
[1723642937068,6.7244,148.72,148.61,2.60189096]
[1723642937431,45.43,148.76,148.6,6.2365]
[1723642937432,1.32340461,148.75,148.6,6.2365]
[1723642937577,6.7235,148.74,148.6,6.2365]
[1723642938299,45.43,148.76,148.61,65.43]
[1723642938899,45.43,148.79,148.62,20.0]
[1723642939088,45.43,148.79,148.63,45.0]
[1723642939277,6.7218,148.77,148.64,65.43]
[1723642939478,45.43,148.82,148.67,45.43]
[1723642939795,45.43,148.82,148.68,45.0]
[1723642939796,6.96002555,148.79,148.68,45.0]
[1723642939999,6.7222,148.77,148.68,45.0]
[1723642940205,45.43,148.79,148.68,45.0]
[1723642940206,8.04560461,148.76,148.68,45.0]
[1723642940392,45.43,148.79,148.68,45.0]
[1723642940393,6.96140741,148.78,148.68,45.0]
[1723642940699,1.32340461,148.77,148.68,45.0]
[1723642940902,6.7232,148.74,148.64,20.0]
[1723642941095,1.32340461,148.73,148.62,20.0]
[1723642941274,1.32340461,148.73,148.63,45.0]
[1723642941515,1.32340461,148.72,148.63,45.0]
[1723642942096,6.7227,148.75,148.63,45.0]
[1723642942382,45.43,148.77,148.63,45.0]
[1723642942383,1.32340461,148.74,148.63,45.0]
[1723642942588,6.7241,148.72,148.6,6.2365]
[1723642942787,1.32340461,148.71,148.6,6.2365]
[1723642943026,1.32340461,148.7,148.6,6.2365]
[1723642943284,52.1545,148.71,148.6,6.2365]
[1723642943808,1.32340461,148.7,148.58,15.381]
[1723642943997,45.43,148.68,148.55,6.6412]
[1723642944322,45.43,148.68,148.52,15.6208]
[1723642944323,45.43,148.65,148.52,15.6208]
[1723642944521,6.7277,148.64,148.52,15.6208]
[1723642944823,52.1572,148.65,148.52,15.6208]
[1723642944994,45.43,148.68,148.52,35.6208]
[1723642945195,45.43,148.71,148.53,45.43]
[1723642945495,45.43,148.71,148.56,45.43]
[1723642945698,45.43,148.65,148.52,15.6208]
[1723642945896,1.32340461,148.64,148.52,15.6208]
[1723642946094,8.05110461,148.64,148.52,15.6208]
[1723642946318,45.43,148.62,148.52,15.6208]
[1723642946490,1.32340461,148.61,148.5,6.262]
[1723642946811,1.32340461,148.6,148.5,6.262]
[1723642946993,52.1589,148.62,148.5,6.262]
[1723642947324,45.43,148.62,148.5,6.262]
[1723642947511,8.05240461,148.61,148.5,6.262]
[1723642947693,45.43,148.65,148.5,6.262]
[1723642948010,1.32340461,148.64,148.5,6.262]
[1723642948223,6.7286,148.62,148.5,6.262]
[1723642948422,8.05250461,148.61,148.5,6.262]
[1723642948634,6.7314,148.56,148.45,6.2444]
[1723642948800,6.7323,148.54,148.45,6.2444]
[1723642948996,1.32340461,148.55,148.45,6.2444]
[1723642948997,1.32340461,148.53,148.45,6.2444]
[1723642949413,1.32340461,148.53,148.42,15.7009]
[1723642949791,46.75340461,148.53,148.42,15.7009]
[1723642950215,6.7321,148.55,148.42,15.7009]
[1723642950419,52.1613,148.56,148.42,15.7009]
[1723642950618,45.43,148.56,148.42,15.7009]
[1723642950916,48.12862574,148.62,148.46,65.43]
[1723642951226,6.7312,148.57,148.46,45.43]
[1723642951387,63.57480461,148.62,148.42,15.7009]
[1723642951388,45.43,148.59,148.42,15.7009]
[1723642951590,45.43,148.56,148.43,65.0]
[1723642951894,1.32340461,148.55,148.42,15.7009]
[1723642952098,45.43,148.5,148.39,0.838427]
[1723642952305,8.05820461,148.49,148.39,0.838427]
[1723642952493,14.66930461,148.52,148.39,0.838427]
[1723642952709,1.32340461,148.51,148.39,0.838427]
[1723642952897,8.05780461,148.5,148.39,0.838427]
[1723642953106,6.7335,148.51,148.39,0.838427]
[1723642953446,6.7344,148.49,148.39,0.838427]
[1723642953591,1.32340461,148.5,148.39,0.838427]
[1723642953926,16.0094,148.53,148.39,0.838427]
[1723642954121,6.7335,148.51,148.39,46.268427]
[1723642954330,16.0094,148.53,148.39,46.268427]
[1723642954331,1.32340461,148.52,148.39,0.838427]
[1723642954622,16.0094,148.53,148.39,0.838427]
[1723642954991,1.32340461,148.52,148.39,0.838427]
[1723642955205,45.43,148.51,148.39,0.838427]
[1723642955415,1.32340461,148.5,148.39,0.838427]
[1723642955627,45.43,148.48,148.39,0.838427]
[1723642955799,6.7345,148.49,148.39,0.838427]
[1723642956134,6.7358,148.46,148.39,0.838427]
[1723642956521,6.7354,148.47,148.39,0.838427]
[1723642956711,52.1649,148.48,148.39,0.838427]
[1723642956912,1.32340461,148.47,148.39,0.838427]
[1723642957225,6.7359,148.46,148.39,0.838427]
[1723642957406,6.7364,148.45,148.39,0.838427]
[1723642957720,6.7365,148.45,148.39,0.838427]
[1723642957906,45.43,148.48,148.39,0.838427]
[1723642957907,6.7369,148.44,148.39,0.838427]
[1723642958107,1.32340461,148.43,148.39,0.838427]
[1723642958309,22.73405136,148.51,148.2,35.7845]
[1723642958310,62.0784,148.41,148.2,35.7845]
[1723642958501,6.7379,148.42,148.29,45.43]
[1723642958698,54.70068625,148.45,148.29,45.43]
[1723642958923,72.86479086,148.45,148.29,45.43]
[1723642959124,63.59440461,148.45,148.29,45.43]
[1723642959293,6.7384,148.41,148.26,45.43]
[1723642959500,45.43,148.42,148.26,45.43]
[1723642959726,1.32340461,148.41,148.26,45.43]
[1723642959896,6.7386,148.4,148.26,45.43]
[1723642960102,6.739,148.39,148.26,45.43]
[1723642960317,6.7395,148.38,148.26,45.43]
[1723642960629,45.43,148.42,148.26,45.43]
[1723642960630,6.74,148.37,148.26,45.43]
[1723642960834,6.7395,148.38,148.26,45.43]
[1723642961028,46.75340461,148.42,148.24,23.53070323]
[1723642961232,45.43,148.39,148.24,23.53070323]
[1723642961540,45.43,148.42,148.26,65.43]
[1723642961828,6.7391,148.39,148.26,45.43]
[1723642962328,8.29211414,148.41,148.26,20.0]
[1723642962329,6.96870953,148.41,148.26,20.0]
[1723642962506,45.43,148.42,148.27,90.43]
[1723642962724,52.398194,148.42,148.27,90.43]
[1723642962904,52.398194,148.42,148.24,3.53070323]
[1723642963133,1.32340461,148.41,148.25,20.0]
[1723642963337,6.7393,148.39,148.26,20.0]
[1723642963523,1.32340461,148.41,148.26,20.0]
[1723642963717,6.7395,148.38,148.26,20.0]
[1723642963920,6.7404,148.36,148.26,20.0]
[1723642964123,1.32340461,148.41,148.24,46.268427]
[1723642964124,45.43,148.39,148.24,46.268427]
[1723642964313,62.2817,148.36,148.24,0.838427]
[1723642964943,6.7418,148.33,148.24,0.838427]
[1723642965525,52.1704,148.36,148.24,0.838427]
[1723642965733,15.2563,148.38,148.24,0.838427]
[1723642965951,45.43,148.4,148.24,0.838427]
[1723642966119,45.43,148.37,148.24,0.838427]
[1723642966353,45.43,148.34,148.24,0.838427]
[1723642967032,52.1716,148.34,148.24,0.838427]
[1723642967236,6.7453,148.25,148.24,0.838427]
[1723642967563,45.43,148.27,148.02,20.0]
[1723642967564,6.7487,148.18,148.02,20.0]
[1723642967719,6.7487,148.18,148.04,2.61149584]
[1723642967720,45.43,148.18,148.04,2.61149584]
[1723642967915,45.43,148.21,148.05,20.0]
[1723642968112,45.43,148.21,148.07,20.0]
[1723642968316,45.43,148.21,148.06,45.43]
[1723642968550,45.43,148.21,148.06,65.43]
[1723642968720,45.43,148.21,148.06,66.77980312]
[1723642969037,45.43,148.21,148.08,20.0]
[1723642969242,45.43,148.21,148.06,20.0]
[1723642969443,52.1772,148.21,148.08,20.0]
[1723642969640,45.43,148.21,148.06,20.0]
[1723642969816,52.1776,148.21,148.06,40.0]
[1723642970322,45.43,148.21,148.06,20.0]
[1723642970533,45.43,148.21,148.08,20.0]
[1723642970722,52.1771,148.21,148.06,20.0]
[1723642971045,45.43,148.21,148.05,26.2978]
[1723642971219,1.32340461,148.2,148.06,20.0]
[1723642971418,1.32340461,148.19,148.06,20.0]
[1723642971839,16.8662,148.23,148.05,6.2978]
[1723642972043,45.43,148.2,148.05,26.2978]
[1723642972242,1.32340461,148.19,148.05,6.2978]
[1723642972528,45.43,148.2,148.05,26.2978]
[1723642972744,45.43,148.2,148.07,20.0]
[1723642972953,1.32340461,148.19,148.06,45.43]
[1723642973246,1.32340461,148.19,148.07,20.0]
[1723642973425,53.71996586,148.2,148.06,20.0]
[1723642973631,6.7494,148.16,148.03,45.43]
[1723642973826,45.43,148.17,147.99,6.0951]
[1723642974026,6.7508,148.13,147.99,51.5251]
[1723642974230,1.32340461,148.12,147.99,51.5251]
[1723642974441,20.0,148.16,148.02,45.43]
[1723642974658,20.0,148.16,148.02,65.43]
[1723642975016,1.32340461,148.15,148.05,45.43]
[1723642975225,6.751,148.13,147.97,6.6105]
[1723642975416,1.32340461,148.12,147.99,45.43]
[1723642975620,8.07470461,148.12,147.99,45.43]
[1723642975922,1.32340461,148.15,147.99,45.43]
[1723642976250,6.7521,148.1,147.97,6.6105]
[1723642976462,52.1821,148.1,147.97,6.6105]
[1723642977041,45.43,148.13,147.97,6.6105]
[1723642977225,6.7521,148.1,147.97,6.6105]
[1723642977429,91.4471659,148.19,148.02,45.43]
[1723642977430,12.2746659,148.19,148.02,45.43]